fUSD/lending_fUSD_20240328
["ID","MTS","AMOUNT","RATE_DAILY","PERIOD"]
[320841848,1711613437412,-500.0,0.00054246,120]
[320841849,1711613437422,-500.0,0.00054246,120]
[320841850,1711613437431,-510.16779409,0.00054246,120]
[320841851,1711613437441,-500.0,0.00054246,120]
[320841852,1711613437450,-500.0,0.00054246,120]
[320841853,1711613437459,-500.0,0.00054246,120]
[320841854,1711613437469,-500.0,0.00054246,120]
[320841855,1711613437479,-500.0,0.00054246,120]
[320841856,1711613437488,-1172.97,0.00054246,120]
[320841857,1711613437498,-500.0,0.00054246,120]
[320841858,1711613437507,-855.56,0.00054246,120]
[320841859,1711613437516,-522.12930957,0.00054246,120]
[320841860,1711613437525,-500.0,0.00054246,120]
[320841861,1711613437535,-500.0,0.00054246,120]
[320841862,1711613437544,-500.0,0.00054246,120]
[320841863,1711613437554,-500.0,0.00054246,120]
[320841864,1711613437563,-519.14411856,0.00054246,120]
[320841865,1711613437573,-500.0,0.00054246,120]
[320841866,1711613437583,-500.0,0.00054246,120]
[320841867,1711613437592,-500.0,0.00054246,120]
[320841868,1711613437602,-500.0,0.00054246,120]
[320841869,1711613437611,-514.14468819,0.00054246,120]
[320841870,1711613437621,-500.0,0.00054246,120]
[320841871,1711613437631,-500.0,0.00054246,120]
[320841872,1711613437641,-500.0,0.00054246,120]
[320841873,1711613437650,-500.0,0.00054246,120]
[320841874,1711613437659,-1279.19,0.00054246,120]
[320841875,1711613437669,-500.0,0.00054246,120]
[320841876,1711613437678,-500.0,0.00054246,120]
[320841877,1711613437688,-500.0,0.00054246,120]
[320841878,1711613437698,-1149.45,0.00054246,120]
[320841879,1711613437707,-500.0,0.00054246,120]
[320841880,1711613437950,-500.0,0.00054246,120]
[320841881,1711613437962,-475.0,0.00054246,120]
[320841882,1711613437973,-816.24,0.00054246,2]
[320841883,1711613437983,-500.0,0.00054246,120]
[320841885,1711613437993,-500.0,0.00054246,120]
[320841886,1711613438003,-500.0,0.00054246,120]
[320841888,1711613438012,-513.81717949,0.00054246,120]
[320841890,1711613438023,-500.0,0.00054246,120]
[320841892,1711613438033,-517.89020668,0.00054246,120]
[320841895,1711613438043,-500.0,0.00054246,120]
[320841896,1711613438052,-500.0,0.00054246,120]
[320841897,1711613438062,-618.17,0.00054246,120]
[320841899,1711613438072,-539.60664757,0.00054246,120]
[320841900,1711613438082,-1134.53,0.00054246,120]
[320841901,1711613438092,-754.59,0.00054246,120]
[320841902,1711613438102,-539.22,0.00054246,120]
[320841903,1711613438112,-500.0,0.00054246,120]
[320841904,1711613438122,-1661.89,0.00054246,120]
[320841905,1711613438132,-500.0,0.00054246,120]
[320841906,1711613438141,-500.0,0.00054246,120]
[320841907,1711613438150,-500.0,0.00054246,120]
[320841908,1711613438159,-500.0,0.00054246,120]
[320841909,1711613438168,-500.0,0.00054246,120]
[320841910,1711613438177,-541.17,0.00054246,120]
[320841911,1711613438186,-500.0,0.00054246,120]
[320841912,1711613438196,-500.0,0.00054246,7]
[320841913,1711613438205,-500.0,0.00054246,120]
[320841914,1711613438215,-500.0,0.00054246,120]
[320841915,1711613438224,-500.0,0.00054246,120]
[320841916,1711613438234,-500.0,0.00054246,120]
[320841917,1711613438242,-500.0,0.00054246,120]
[320841918,1711613438252,-500.0,0.00054246,120]
[320841919,1711613438262,-500.0,0.00054246,120]
[320841920,1711613438271,-500.0,0.00054246,120]
[320841921,1711613438281,-500.0,0.00054246,120]
[320841922,1711613438290,-500.0,0.00054246,120]
[320841923,1711613438299,-776.22,0.00054246,120]
[320841924,1711613438308,-636.58,0.00054246,120]
[320841925,1711613438317,-500.0,0.00054246,120]
[320841926,1711613438326,-500.0,0.00054246,120]
[320841927,1711613438336,-509.07307948,0.00054246,120]
[320841928,1711613438345,-609.79,0.00054246,30]
[320841929,1711613438355,-500.0,0.00054246,120]
[320841930,1711613438364,-500.0,0.00054246,120]
[320841931,1711613438373,-500.0,0.00054246,120]
[320841932,1711613438382,-500.0,0.00054246,120]
[320841933,1711613438391,-525.21617342,0.00054246,120]
[320841934,1711613438400,-500.0,0.00054246,120]
[320841935,1711613438409,-500.0,0.00054246,120]
[320841936,1711613438418,-509.13916113,0.00054246,120]
[320841937,1711613438427,-500.0,0.00054246,120]
[320841938,1711613438437,-500.0,0.00054246,120]
[320841939,1711613438446,-500.0,0.00054246,120]
[320841940,1711613438455,-676.87,0.00054246,120]
[320841941,1711613438464,-500.0,0.00054246,120]
[320841942,1711613438473,-500.0,0.00054246,120]
[320841943,1711613438483,-500.0,0.00054246,120]
[320841944,1711613438494,-500.0,0.00054246,120]
[320841945,1711613438503,-500.0,0.00054246,120]
[320841946,1711613438513,-500.0,0.00054246,120]
[320841947,1711613438523,-723.64,0.00054246,120]
[320841948,1711613438533,-509.19955707,0.00054246,120]
[320841949,1711613438543,-500.0,0.00054246,120]
[320841950,1711613438552,-500.0,0.00054246,120]
[320841951,1711613438562,-500.0,0.00054246,120]
[320841952,1711613438571,-500.0,0.00054246,120]
[320841953,1711613438582,-500.0,0.00054246,120]
[320841955,1711613438591,-500.0,0.00054246,120]
[320841957,1711613438601,-500.0,0.00054246,120]
[320841959,1711613438610,-500.0,0.00054246,120]
[320841961,1711613438619,-568.56,0.00054246,120]
[320841963,1711613438628,-500.0,0.00054246,120]
[320841965,1711613438637,-500.0,0.00054246,120]
[320841967,1711613438646,-500.0,0.00054246,120]
[320841968,1711613438656,-500.0,0.00054246,120]
[320841970,1711613438665,-500.0,0.00054246,120]
[320841971,1711613438674,-500.0,0.00054246,120]
[320841972,1711613438683,-528.27,0.00054246,120]
[320841973,1711613438693,-500.0,0.00054246,120]
[320841974,1711613438703,-512.33741679,0.00054246,120]
[320841975,1711613438712,-500.0,0.00054246,120]
[320841976,1711613438722,-500.0,0.00054246,120]
[320841977,1711613438731,-555.06,0.00054246,2]
[320841978,1711613438741,-500.39,0.00054246,120]
[320841979,1711613438750,-304.33230489,0.00054246,120]
[320841980,1711613438760,-510.94254917,0.00054246,30]
[320841981,1711613438769,-518.77473736,0.00054246,120]
[320841982,1711613438779,-1308.04,0.00054246,120]
[320841983,1711613438789,-933.17,0.00054246,120]
[320841984,1711613438798,-270.26370871,0.00054246,120]
[320841985,1711613438807,-500.0,0.00054246,120]
[320841986,1711613438817,-500.0,0.00054246,120]
[320841987,1711613438826,-500.0,0.00054246,120]
[320841988,1711613438836,-500.0,0.00054246,120]
[320841989,1711613438845,-515.52087951,0.00054246,120]
[320841990,1711613438854,-500.0,0.00054246,120]
[320841991,1711613438864,-1797.19,0.00054246,120]
[320841992,1711613438873,-515.54939897,0.00054246,120]
[320841993,1711613438882,-502.83,0.00054246,120]
[320841994,1711613438892,-222.11003185,0.00054246,120]
[320841995,1711613438901,-500.0,0.00054246,120]
[320841996,1711613438910,-500.0,0.00054246,120]
[320841997,1711613438919,-500.0,0.00054246,120]
[320841998,1711613438929,-500.0,0.00054246,120]
[320841999,1711613438941,-500.0,0.00054246,120]
[320842000,1711613438951,-500.0,0.00054246,120]
[320842001,1711613438961,-507.98026222,0.00054246,120]
[320842002,1711613438970,-500.0,0.00054246,120]
[320842003,1711613438980,-500.0,0.00054246,120]
[320842004,1711613438989,-500.0,0.00054246,120]
[320842005,1711613438999,-500.0,0.00054246,120]
[320842006,1711613439008,-500.0,0.00054246,120]
[320842007,1711613439018,-537.72351223,0.00054246,120]
[320842008,1711613439029,-500.0,0.00054246,120]
[320842009,1711613439039,-500.0,0.00054246,120]
[320842010,1711613439049,-500.0,0.00054246,120]
[320842011,1711613439058,-816.92,0.00054246,120]
[320842012,1711613439068,-515.38275239,0.00054246,120]
[320842013,1711613439077,-776.75,0.00054246,120]
[320842014,1711613439089,-500.0,0.00054246,120]
[320842015,1711613439098,-500.0,0.00054246,120]
[320842016,1711613439108,-500.0,0.00054246,120]
[320842017,1711613439118,-500.0,0.00054246,120]
[320842018,1711613439128,-522.59360662,0.00054246,120]
[320842019,1711613439139,-500.0,0.00054246,120]
[320842020,1711613439150,-500.0,0.00054246,120]
[320842021,1711613439161,-500.0,0.00054246,120]
[320842022,1711613439174,-500.0,0.00054246,120]
[320842023,1711613439184,-500.0,0.00054246,120]
[320842024,1711613439195,-500.0,0.00054246,120]
[320842025,1711613439207,-500.0,0.00054246,120]
[320842026,1711613439217,-500.0,0.00054246,120]
[320842027,1711613439228,-500.0,0.00054246,120]
[320842028,1711613439238,-500.0,0.00054246,120]
[320842029,1711613439254,-429.09039409,0.00054246,120]
[320842030,1711613439266,-500.0,0.00054246,120]
[320842031,1711613439276,-500.0,0.00054246,120]
[320842032,1711613439288,-500.0,0.00054246,120]
[320842033,1711613439299,-515.39697672,0.00054246,120]
[320842034,1711613439309,-500.0,0.00054246,120]
[320842035,1711613439319,-165.34509839,0.00054246,120]
[320842036,1711613439330,-500.0,0.00054246,120]
[320842037,1711613439348,-500.0,0.00054246,120]
[320842038,1711613439358,-500.0,0.00054246,120]
[320842039,1711613439369,-513.57505809,0.00054246,120]
[320842040,1711613439379,-150.0,0.00054246,120]
[320842041,1711613439388,-500.0,0.00054246,120]
[320842042,1711613439397,-1103.45,0.00054246,120]
[320842043,1711613439407,-500.0,0.00054246,120]
[320842044,1711613439416,-1299.04,0.00054246,120]
[320842045,1711613439426,-511.93127788,0.00054246,120]
[320842046,1711613439435,-220.47385642,0.00054246,120]
[320842047,1711613439445,-500.0,0.00054246,120]
[320842048,1711613439455,-500.0,0.00054246,120]
[320842049,1711613439464,-500.0,0.00054246,120]
[320842050,1711613439474,-929.68,0.00054246,120]
[320842051,1711613439483,-508.97630553,0.00054246,120]
[320842052,1711613439493,-500.0,0.00054246,120]
[320842053,1711613439503,-500.0,0.00054246,120]
[320842054,1711613439513,-500.0,0.00054246,120]
[320842055,1711613439522,-530.59940432,0.00054246,120]
[320842056,1711613439532,-500.0,0.00054246,120]
[320842057,1711613439542,-500.0,0.00054246,120]
[320842058,1711613439551,-616.41,0.00054246,120]
[320842059,1711613439561,-508.86,0.00054246,120]
[320842060,1711613439571,-533.62,0.00054246,120]
[320842061,1711613439580,-1034.03,0.00054246,120]
[320842062,1711613439592,-512.28804961,0.00054246,120]
[320842063,1711613439602,-500.0,0.00054246,120]
[320842064,1711613439611,-500.0,0.00054246,120]
[320842065,1711613439622,-500.0,0.00054246,120]
[320842066,1711613439631,-500.0,0.00054246,120]
[320842067,1711613439641,-500.0,0.00054246,120]
[320842068,1711613439650,-500.0,0.00054246,120]
[320842069,1711613439664,-500.0,0.00054246,120]
[320842070,1711613439680,-500.0,0.00054246,120]
[320842071,1711613439695,-634.11,0.00054246,120]
[320842072,1711613439708,-500.0,0.00054246,120]
[320842073,1711613439720,-714.34,0.00054246,120]
[320842074,1711613439734,-255.23001652,0.00054246,120]
[320842075,1711613439748,-854.82,0.00054246,120]
[320842076,1711613439763,-500.0,0.00054246,120]
[320842077,1711613439776,-500.0,0.00054246,120]
[320842078,1711613439790,-500.0,0.00054246,120]
[320842079,1711613439802,-500.0,0.00054246,120]
[320842080,1711613439816,-500.0,0.00054246,120]
[320842081,1711613439829,-458.36693962,0.00054246,120]
[320842082,1711613439844,-500.0,0.00054246,120]
[320842083,1711613439857,-641.94256878,0.00054246,120]
[320842084,1711613439871,-500.0,0.00054246,120]
[320842085,1711613439883,-739.76,0.00054246,120]
[320842086,1711613439894,-2116.35,0.00054246,120]
[320842087,1711613439909,-500.0,0.00054246,120]
[320842088,1711613439922,-500.0,0.00054246,120]
[320842089,1711613439937,-245.52982503,0.00054246,120]
[320842090,1711613439950,-500.0,0.00054246,120]
[320842092,1711613439966,-500.0,0.00054246,120]
[320842093,1711613439978,-890.08,0.00054246,120]
[320842094,1711613439990,-500.0,0.00054246,120]
[320842096,1711613440005,-500.0,0.00054246,120]
[320842097,1711613440020,-500.0,0.00054246,120]
[320842098,1711613440034,-512.93503235,0.00054246,120]
[320842099,1711613440048,-500.0,0.00054246,120]
[320842100,1711613440059,-1076.19,0.00054246,120]
[320842101,1711613440069,-500.0,0.00054246,120]
[320842102,1711613440083,-1186.96,0.00054246,120]
[320842103,1711613440097,-500.0,0.00054246,120]
[320842104,1711613440110,-1732.98,0.00054246,120]
[320842105,1711613440123,-525.03,0.00054246,120]
[320842106,1711613440136,-12996.22,0.00054246,120]
[320842107,1711613440147,-516.12133204,0.00054246,120]
[320842108,1711613440158,-616.79,0.00054246,120]
[320842109,1711613440169,-500.0,0.00054246,120]
[320842110,1711613440181,-850.09,0.00054246,120]
[320842111,1711613440193,-1885.58,0.00054246,120]
[320842112,1711613440204,-500.0,0.00054246,120]
[320842113,1711613440216,-517.40080047,0.00054246,120]
[320842114,1711613440228,-500.0,0.00054246,120]
[320842115,1711613440240,-500.0,0.00054246,120]
[320842116,1711613440252,-500.0,0.00054246,120]
[320842117,1711613440268,-500.0,0.00054246,120]
[320842118,1711613440280,-2558.61,0.00054246,120]
[320842119,1711613440291,-500.0,0.00054246,120]
[320842120,1711613440304,-500.0,0.00054246,120]
[320842121,1711613440315,-500.0,0.00054246,120]
[320842122,1711613440328,-500.0,0.00054246,120]
[320842123,1711613440341,-988.16,0.00054246,120]
[320842124,1711613440354,-524.10104252,0.00054246,120]
[320842125,1711613440367,-500.0,0.00054246,120]
[320842126,1711613440378,-1968.16,0.00054246,120]
[320842127,1711613440390,-551.98304949,0.00054246,120]
[320842128,1711613440402,-500.0,0.00054246,120]
[320842129,1711613440414,-1699.93,0.00054246,120]
[320842130,1711613440426,-500.0,0.00054246,120]
[320842131,1711613440438,-11142.61,0.00054246,120]
[320842132,1711613440450,-862.32,0.00054246,120]
[320842133,1711613440461,-500.0,0.00054246,120]
[320842134,1711613440473,-500.0,0.00054246,120]
[320842135,1711613440485,-506.32597776,0.00054246,120]
[320842136,1711613440497,-1874.03,0.00054246,120]
[320842137,1711613440508,-500.0,0.00054246,120]
[320842138,1711613440520,-1024.8,0.00054246,120]
[320842139,1711613440531,-500.0,0.00054246,120]
[320842140,1711613440542,-500.0,0.00054246,120]
[320842141,1711613440554,-2724.14,0.00054246,120]
[320842142,1711613440566,-500.0,0.00054246,120]
[320842143,1711613440577,-937.98,0.00054246,120]
[320842144,1711613440590,-1144.7,0.00054246,120]
[320842145,1711613440602,-658.15,0.00054246,120]
[320842146,1711613440614,-1894.02,0.00054246,120]
[320842147,1711613440625,-526.20567692,0.00054246,120]
[320842148,1711613440637,-500.0,0.00054246,120]
[320842149,1711613440648,-500.0,0.00054246,120]
[320842150,1711613440659,-614.86,0.00054246,120]
[320842151,1711613440672,-682.69,0.00054246,120]
[320842152,1711613440683,-736.23,0.00054246,120]
[320842153,1711613440695,-1026.63,0.00054246,120]
[320842155,1711613440707,-500.0,0.00054246,120]
[320842157,1711613440719,-500.0,0.00054246,120]
[320842158,1711613440789,-495.94245455,0.00054246,120]
[320842159,1711613440801,-500.0,0.00054246,120]
[320842160,1711613440813,-1524.35,0.00054246,120]
[320842161,1711613440825,-500.0,0.00054246,120]
[320842162,1711613440840,-500.0,0.00054246,120]
[320842163,1711613440852,-500.0,0.00054246,120]
[320842164,1711613440865,-815.22,0.00054246,120]
[320842165,1711613440876,-883.64,0.00054246,120]
[320842166,1711613440888,-513.29378879,0.00054246,120]
[320842167,1711613440900,-1847.84,0.00054246,120]
[320842168,1711613440912,-500.0,0.00054246,120]
[320842169,1711613440924,-2513.74,0.00054246,120]
[320842170,1711613440936,-12691.43,0.00054246,120]
[320842171,1711613440951,-500.0,0.00054246,120]
[320842172,1711613440965,-500.0,0.00054246,120]
[320842173,1711613440977,-587.81,0.00054246,120]
[320842174,1711613440991,-500.0,0.00054246,120]
[320842175,1711613441003,-939.97,0.00054246,120]
[320842176,1711613441016,-500.0,0.00054246,120]
[320842177,1711613441028,-961.33,0.00054246,120]
[320842178,1711613441042,-500.0,0.00054246,120]
[320842179,1711613441055,-500.0,0.00054246,120]
[320842180,1711613441066,-500.0,0.00054246,120]
[320842181,1711613441078,-510.18763664,0.00054246,120]
[320842182,1711613441091,-500.0,0.00054246,120]
[320842183,1711613441102,-500.0,0.00054246,120]
[320842184,1711613441114,-500.0,0.00054246,120]
[320842185,1711613441128,-500.0,0.00054246,120]
[320842186,1711613441140,-1247.18,0.00054246,120]
[320842187,1711613441152,-643.47,0.00054246,120]
[320842188,1711613441165,-500.0,0.00054246,120]
[320842189,1711613441177,-515.23651976,0.00054246,120]
[320842190,1711613441188,-754.66,0.00054246,120]
[320842191,1711613441201,-500.0,0.00054246,120]
[320842192,1711613441212,-553.14927101,0.00054246,120]
[320842193,1711613441224,-500.0,0.00054246,120]
[320842194,1711613441235,-1391.5,0.00054246,120]
[320842195,1711613441248,-509.77142959,0.00054246,120]
[320842196,1711613441260,-515.83,0.00054246,120]
[320842197,1711613441272,-1208.47,0.00054246,120]
[320842198,1711613441283,-513.92,0.00054246,120]
[320842199,1711613441295,-1170.43,0.00054246,120]
[320842200,1711613441307,-500.0,0.00054246,120]
[320842201,1711613441319,-507.03271528,0.00054246,120]
[320842202,1711613441332,-852.2,0.00054246,120]
[320842203,1711613441344,-741.26,0.00054246,120]
[320842204,1711613441356,-508.62727046,0.00054246,120]
[320842205,1711613441368,-860.37,0.00054246,120]
[320842206,1711613441380,-500.0,0.00054246,120]
[320842207,1711613441392,-329.27596629,0.00054246,120]
[320842208,1711613441404,-1024.34,0.00054246,120]
[320842209,1711613441416,-500.0,0.00054246,120]
[320842210,1711613441427,-633.96,0.00054246,120]
[320842211,1711613441439,-500.0,0.00054246,120]
[320842212,1711613441450,-1958.52,0.00054246,21]
[320842213,1711613441462,-2148.05,0.00054246,120]
[320842214,1711613441474,-500.0,0.00054246,120]
[320842215,1711613441487,-508.27266641,0.00054246,120]
[320842216,1711613441499,-721.17,0.00054246,120]
[320842217,1711613441512,-500.0,0.00054246,120]
[320842218,1711613441525,-500.0,0.00054246,120]
[320842219,1711613441535,-500.0,0.00054246,120]
[320842220,1711613441545,-719.48,0.00054246,120]
[320842221,1711613441555,-500.0,0.00054246,120]
[320842222,1711613441564,-660.3,0.00054246,120]
[320842223,1711613441574,-500.0,0.00054246,120]
[320842224,1711613441584,-621.46,0.00054246,120]
[320842225,1711613441594,-1413.92,0.00054246,120]
[320842226,1711613441603,-500.0,0.00054246,120]
[320842227,1711613441613,-500.0,0.00054246,120]
[320842228,1711613441623,-500.0,0.00054246,120]
[320842229,1711613441634,-500.0,0.00054246,120]
[320842230,1711613441644,-511.49,0.00054246,7]
[320842231,1711613441654,-500.0,0.00054246,120]
[320842232,1711613441664,-1347.22,0.00054246,120]
[320842233,1711613441675,-1075.36,0.00054246,120]
[320842234,1711613441686,-500.0,0.00054246,120]
[320842235,1711613441696,-500.0,0.00054246,120]
[320842236,1711613441706,-1274.42,0.00054246,120]
[320842237,1711613441717,-514.14859936,0.00054246,120]
[320842238,1711613441727,-508.77,0.00054246,120]
[320842239,1711613441737,-513.11778596,0.00054246,120]
[320842240,1711613442054,-864.74,0.00054246,120]
[320842241,1711613442077,-1133.98,0.00054246,120]
[320842242,1711613442097,-500.0,0.00054246,120]
[320842243,1711613442111,-500.0,0.00054246,120]
[320842244,1711613442122,-1896.5,0.00054246,120]
[320842245,1711613442132,-434.07735691,0.00054246,120]
[320842246,1711613442142,-500.0,0.00054246,120]
[320842247,1711613442152,-1887.39,0.00054246,120]
[320842248,1711613442162,-815.01,0.00054246,120]
[320842249,1711613442171,-1604.38,0.00054246,120]
[320842250,1711613442182,-684.11,0.00054246,120]
[320842251,1711613442192,-500.0,0.00054246,120]
[320842252,1711613442201,-714.62,0.00054246,120]
[320842253,1711613442211,-500.0,0.00054246,120]
[320842254,1711613442221,-513.11962531,0.00054246,120]
[320842255,1711613442231,-500.0,0.00054246,120]
[320842256,1711613442241,-500.0,0.00054246,120]
[320842257,1711613442251,-500.0,0.00054246,120]
[320842258,1711613442261,-500.0,0.00054246,120]
[320842259,1711613442271,-500.0,0.00054246,120]
[320842260,1711613442281,-630.03,0.00054246,120]
[320842261,1711613442292,-662.83,0.00054246,120]
[320842262,1711613442302,-2842.62,0.00054246,120]
[320842263,1711613442312,-500.0,0.00054246,2]
[320842264,1711613442323,-4245.47,0.00054246,120]
[320842265,1711613442335,-500.0,0.00054246,120]
[320842266,1711613442345,-500.0,0.00054246,120]
[320842267,1711613442355,-500.0,0.00054246,120]
[320842268,1711613442365,-606.76,0.00054246,120]
[320842269,1711613442375,-835.61,0.00054246,120]
[320842270,1711613442396,-510.23518389,0.00054246,120]
[320842271,1711613442407,-500.0,0.00054246,120]
[320842272,1711613442417,-2472.77,0.00054246,120]
[320842273,1711613442428,-500.0,0.00054246,120]
[320842274,1711613442440,-1999.95,0.00054246,120]
[320842275,1711613442450,-1644.31,0.00054246,120]
[320842276,1711613442461,-500.0,0.00054246,120]
[320842277,1711613442472,-1776.37,0.00054246,120]
[320842278,1711613442482,-506.37517873,0.00054246,120]
[320842279,1711613442493,-500.0,0.00054246,120]
[320842280,1711613442504,-510.53602015,0.00054246,120]
[320842281,1711613442514,-758.02,0.00054246,120]
[320842282,1711613442526,-500.0,0.00054246,120]
[320842283,1711613442536,-511.20835537,0.00054246,120]
[320842284,1711613442546,-1186.57,0.00054246,120]
[320842285,1711613442557,-626.99,0.00054246,120]
[320842286,1711613442568,-409.15701603,0.00054246,120]
[320842287,1711613442580,-506.73711929,0.00054246,120]
[320842288,1711613442593,-500.0,0.00054246,120]
[320842289,1711613442604,-1858.84,0.00054246,120]
[320842290,1711613442614,-893.95,0.00054246,120]
[320842291,1711613442625,-1858.84,0.00054246,120]
[320842292,1711613442636,-507.79912553,0.00054246,120]
[320842293,1711613442649,-1858.84,0.00054246,120]
[320842294,1711613442660,-1647.46,0.00054246,120]
[320842295,1711613442670,-500.0,0.00054246,120]
[320842296,1711613442680,-500.0,0.00054246,120]
[320842297,1711613442690,-1810.64,0.00054246,120]
[320842298,1711613442701,-502.81,0.00054246,120]
[320842299,1711613442712,-500.0,0.00054246,120]
[320842300,1711613442722,-1686.42,0.00054246,120]
[320842301,1711613442733,-500.0,0.00054246,120]
[320842302,1711613442744,-3254.97,0.00054246,120]
[320842303,1711613442755,-839.1,0.00054246,120]
[320842304,1711613442765,-500.0,0.00054246,120]
[320842305,1711613442776,-500.0,0.00054246,120]
[320842306,1711613442788,-1621.63,0.00054246,120]
[320842307,1711613442798,-1374.33,0.00054246,120]
[320842308,1711613442807,-2285.98,0.00054246,120]
[320842309,1711613442817,-1777.56,0.00054246,120]
[320842310,1711613442827,-1272.01,0.00054246,120]
[320842311,1711613442839,-511.97271314,0.00054246,120]
[320842312,1711613442849,-500.0,0.00054246,120]
[320842313,1711613442858,-509.23285855,0.00054246,120]
[320842314,1711613442868,-507.73270947,0.00054246,120]
[320842315,1711613442878,-500.0,0.00054246,120]
[320842316,1711613442887,-512.95273361,0.00054246,120]
[320842317,1711613442897,-500.0,0.00054246,120]
[320842318,1711613442906,-1290.2,0.00054246,120]
[320842319,1711613442916,-500.0,0.00054246,120]
[320842320,1711613442926,-500.0,0.00054246,120]
[320842323,1711613442935,-980.71,0.00054246,120]
[320842325,1711613442948,-500.0,0.00054246,120]
[320842326,1711613442958,-6812.65,0.00054246,120]
[320842328,1711613442968,-2350.47,0.00054246,120]
[320842330,1711613442977,-506.51805632,0.00054246,120]
[320842331,1711613442988,-500.0,0.00054246,120]
[320842332,1711613442997,-515.88082734,0.00054246,120]
[320842333,1711613443006,-861.06,0.00054246,120]
[320842334,1711613443015,-500.0,0.00054246,120]
[320842335,1711613443025,-500.0,0.00054246,120]
[320842336,1711613443036,-1401.99,0.00054246,120]
[320842337,1711613443045,-1135.52,0.00054246,120]
[320842338,1711613443054,-2124.8,0.00054246,120]
[320842339,1711613443065,-528.18582391,0.00054246,120]
[320842340,1711613443074,-696.75,0.00054246,120]
[320842341,1711613443084,-500.0,0.00054246,120]
[320842342,1711613443093,-1346.39,0.00054246,120]
[320842344,1711613443103,-1525.67,0.00054246,120]
[320842346,1711613443112,-1214.85,0.00054246,120]
[320842348,1711613443121,-1371.87,0.00054246,120]
[320842350,1711613443130,-4859.66,0.00054246,120]
[320842352,1711613443143,-1182.02,0.00054246,120]
[320842354,1711613443153,-514.20928611,0.00054246,120]
[320842356,1711613443163,-1026.3,0.00054246,120]
[320842358,1711613443172,-887.37,0.00054246,120]
[320842360,1711613443182,-500.0,0.00054246,120]
[320842362,1711613443191,-500.0,0.00054246,120]
[320842364,1711613443201,-1869.19,0.00054246,120]
[320842366,1711613443210,-745.9,0.00054246,120]
[320842369,1711613443220,-1598.03,0.00054246,120]
[320842372,1711613443230,-1693.96,0.00054246,120]
[320842375,1711613443239,-523.21683431,0.00054246,120]
[320842378,1711613443250,-1771.68,0.00054246,120]
[320842381,1711613443259,-513.93693519,0.00054246,120]
[320842384,1711613443269,-500.5911669,0.00054246,2]
[320842385,1711613443279,-513.59879294,0.00054246,120]
[320842386,1711613443288,-865.95,0.00054246,120]
[320842387,1711613443298,-1210.98,0.00054246,120]
[320842388,1711613443308,-3510.22,0.00054246,120]
[320842389,1711613443318,-531.98098494,0.00054246,120]
[320842390,1711613443327,-1288.52,0.00054246,120]
[320842391,1711613443338,-1114.26,0.00054246,120]
[320842392,1711613443348,-500.44721678,0.00054246,2]
[320842394,1711613443357,-500.0,0.00054246,120]
[320842395,1711613443366,-538.67,0.00054246,120]
[320842396,1711613443376,-800.21,0.00054246,120]